fUST/lending_fUST_20240819
["ID","MTS","AMOUNT","RATE_DAILY","PERIOD"]
[335259166,1724051449892,-32038.40572544,0.00016303,2]
[335259167,1724051449903,-538.161646,0.00016303,2]
[335259168,1724051449913,-538.161646,0.00016303,2]
[335259169,1724051449923,-151.0,0.00016303,2]
[335259170,1724051449934,-200.593651,0.00016303,2]
[335259171,1724051449944,-200.593651,0.00016303,2]
[335259172,1724051449953,-197.267376,0.00016303,2]
[335259173,1724051449963,-197.267376,0.00016303,2]
[335259174,1724051449974,-151.0,0.00016303,2]
[335259175,1724051449985,-353.034281,0.00016303,2]
[335259176,1724051449995,-353.034282,0.00016303,2]
[335259177,1724051450005,-188.726366,0.00016303,2]
[335259178,1724051450014,-188.726371,0.00016303,2]
[335259179,1724051450023,-523.895365,0.00016303,2]
[335259180,1724051450033,-523.895357,0.00016303,2]
[335259181,1724051450043,-283.046539,0.00016303,2]
[335259182,1724051450053,-283.046535,0.00016303,2]
[335259183,1724051450063,-177.994438,0.00016303,2]
[335259184,1724051450073,-177.994432,0.00016303,2]
[335259185,1724051450082,-310.091314,0.00016303,2]
[335259186,1724051450092,-310.091305,0.00016303,2]
[335259187,1724051450103,-151.0,0.00016303,2]
[335259188,1724051450112,-1155.878446,0.00016303,2]
[335259189,1724051450122,-1155.87844973,0.00016303,2]
[335259190,1724051450131,-194.69223,0.00016303,2]
[335259191,1724051450142,-264.242291,0.00016303,2]
[335259192,1724051450151,-264.242287,0.00016303,2]
[335259193,1724051450161,-247.978365,0.00016303,2]
[335259194,1724051450170,-247.978362,0.00016303,2]
[335259195,1724051450179,-151.0,0.00016303,2]
[335259196,1724051450189,-151.0,0.00016303,2]
[335259197,1724051450199,-196.919848,0.00016303,2]
[335259198,1724051450208,-196.919848,0.00016303,2]
[335259199,1724051450217,-551.71285,0.00016303,2]
[335259200,1724051450227,-551.71285,0.00016303,2]
[335259201,1724051450236,-170.036821,0.00016303,2]
[335259202,1724051450246,-170.036821,0.00016303,2]
[335259203,1724051450256,-3000.0,0.0001631,2]
[335259204,1724051450265,-3000.0,0.0001632,2]
[335259205,1724051450275,-3000.0,0.0001633,2]
[335259206,1724051450284,-1000.0,0.00016338,2]
[335259207,1724051450293,-3000.0,0.0001634,2]
[335259208,1724051450303,-3000.0,0.0001635,2]
[335259209,1724051450311,-1000.0,0.00016351,2]
[335259210,1724051450323,-3000.0,0.0001636,2]
[335259211,1724051450333,-1000.0,0.00016363,2]
[335259212,1724051450342,-3000.0,0.0001637,2]
[335259213,1724051450351,-600.0,0.00016378,2]
[335259214,1724051450361,-3000.0,0.0001638,2]
[335259215,1724051450371,-3000.0,0.0001639,2]
[335259216,1724051450380,-170.036821,0.0001639,2]
[335259217,1724051450392,-170.036821,0.0001639,2]
[335259218,1724051450407,-150.112242,0.000164,2]
[335259219,1724051450416,-150.112233,0.000164,2]
[335259220,1724051450425,-150.112233,0.000164,2]
[335259221,1724051450434,-3000.0,0.000164,2]
[335259222,1724051450444,-150.112233,0.000164,2]
[335259223,1724051450454,-1076.923186,0.000164,4]
[335259224,1724051450463,-151.0,0.000164,2]
[335259225,1724051450473,-196.919848,0.000164,2]
[335259226,1724051450483,-196.919846,0.000164,2]
[335259227,1724051450492,-551.71285,0.000164,2]
[335259228,1724051450502,-551.712843,0.000164,2]
[335259229,1724051450511,-3000.0,0.0001641,2]
[335259230,1724051450522,-150.0,0.00016411,2]
[335259231,1724051450531,-3200.0,0.00016411,2]
[335259232,1724051450542,-3000.0,0.0001642,2]
[335259233,1724051450551,-3000.0,0.0001643,2]
[335259234,1724051450561,-999.1,0.00016438,2]
[335259235,1724051450571,-329.63901288,0.00016438,2]
[335259236,1724051450581,-398.32446248,0.00016438,2]
[335259237,1724051450590,-504.5434684,0.00016438,2]
[335259238,1724051450599,-555.5201003,0.00016438,2]
[335259239,1724051450609,-501.10086832,0.00016438,2]
[335259240,1724051450619,-500.0,0.00016438,2]
[335259241,1724051450630,-246.67431547,0.00016438,2]
[335259242,1724051450642,-500.0,0.00016438,2]
[335259243,1724051450651,-506.38447394,0.00016438,2]
[335259244,1724051450661,-625.19393355,0.00016438,2]
[335259245,1724051450670,-501.62204643,0.00016438,2]
[335259246,1724051450679,-500.0,0.00016438,2]
[335259247,1724051450688,-502.51412809,0.00016438,2]
[335259248,1724051450698,-500.0,0.00016438,2]
[335259249,1724051450707,-500.0,0.00016438,2]
[335259250,1724051450717,-503.81834878,0.00016438,2]
[335259251,1724051450727,-296.7397909,0.00016438,2]
[335259252,1724051450737,-401.73513406,0.00016438,2]
[335259253,1724051450746,-501.26697666,0.00016438,2]
[335259254,1724051450756,-504.33541395,0.00016438,2]
[335259255,1724051450766,-512.71200777,0.00016438,2]
[335259256,1724051450776,-500.0,0.00016438,2]
[335259257,1724051450786,-500.0,0.00016438,2]
[335259258,1724051450796,-189.60276231,0.00016438,2]
[335259259,1724051450806,-501.12159933,0.00016438,2]
[335259260,1724051450815,-500.0,0.00016438,2]
[335259261,1724051450825,-513.37692205,0.00016438,2]
[335259262,1724051450834,-500.0,0.00016438,2]
[335259263,1724051450844,-500.0,0.00016438,2]
[335259264,1724051450960,-514.64323135,0.00016438,2]
[335259265,1724051450971,-506.45319963,0.00016438,2]
[335259266,1724051450981,-511.87383453,0.00016438,2]
[335259267,1724051450991,-500.0,0.00016438,2]
[335259268,1724051451001,-500.0,0.00016438,2]
[335259269,1724051451011,-500.0,0.00016438,2]
[335259270,1724051451021,-500.0,0.00016438,2]
[335259271,1724051451031,-645.1023754,0.00016438,2]
[335259272,1724051451040,-500.0,0.00016438,2]
[335259273,1724051451050,-549.61168111,0.00016438,2]
[335259274,1724051451059,-508.41664029,0.00016438,2]
[335259275,1724051451068,-604.13087481,0.00016438,2]
[335259276,1724051451078,-500.0,0.00016438,2]
[335259277,1724051451088,-500.0,0.00016438,2]
[335259278,1724051451097,-505.21305325,0.00016438,2]
[335259279,1724051451107,-500.0,0.00016438,2]
[335259280,1724051451116,-500.0,0.00016438,2]
[335259281,1724051451126,-500.0,0.00016438,2]
[335259282,1724051451137,-500.0,0.00016438,2]
[335259283,1724051451146,-500.0,0.00016438,2]
[335259284,1724051451156,-500.0,0.00016438,2]
[335259285,1724051451166,-500.17830587,0.00016438,2]
[335259286,1724051451175,-500.0,0.00016438,2]
[335259287,1724051451184,-556.69313548,0.00016438,2]
[335259288,1724051451194,-279.27179706,0.00016438,2]
[335259289,1724051451204,-507.0688947,0.00016438,2]
[335259290,1724051451213,-500.0,0.00016438,2]
[335259291,1724051451223,-699.49,0.00016438,2]
[335259292,1724051451233,-500.0,0.00016438,2]
[335259293,1724051451242,-500.0,0.00016438,2]
[335259294,1724051451252,-500.0,0.00016438,2]
[335259295,1724051451261,-290.44224381,0.00016438,2]
[335259296,1724051451271,-500.0,0.00016438,2]
[335259297,1724051451281,-504.24739265,0.00016438,2]
[335259298,1724051451290,-500.0,0.00016438,2]
[335259299,1724051451300,-500.0,0.00016438,2]
[335259300,1724051451309,-505.64103192,0.00016438,2]
[335259301,1724051451320,-500.0,0.00016438,2]
[335259302,1724051451334,-511.81363341,0.00016438,2]
[335259303,1724051451343,-500.0,0.00016438,2]
[335259304,1724051451353,-500.0,0.00016438,2]
[335259305,1724051451362,-505.66961911,0.00016438,2]
[335259306,1724051451372,-500.0,0.00016438,2]
[335259307,1724051451381,-500.0,0.00016438,2]
[335259308,1724051451391,-500.0,0.00016438,2]
[335259309,1724051451400,-506.19767359,0.00016438,2]
[335259310,1724051451409,-514.65507619,0.00016438,2]
[335259311,1724051451418,-510.92412141,0.00016438,2]
[335259312,1724051451428,-508.38058557,0.00016438,2]
[335259313,1724051451438,-500.0,0.00016438,2]
[335259314,1724051451447,-501.61841309,0.00016438,2]
[335259315,1724051451456,-500.0,0.00016438,2]
[335259316,1724051451465,-502.60341497,0.00016438,2]
[335259317,1724051451474,-500.0,0.00016438,2]
[335259318,1724051451483,-500.0,0.00016438,2]
[335259319,1724051451492,-500.0,0.00016438,2]
[335259320,1724051451501,-500.0,0.00016438,2]
[335259321,1724051451511,-500.0,0.00016438,2]
[335259322,1724051451520,-509.30025231,0.00016438,2]
[335259323,1724051451530,-500.0,0.00016438,2]
[335259324,1724051451540,-501.89638368,0.00016438,2]
[335259325,1724051451549,-508.83498017,0.00016438,2]
[335259326,1724051451558,-500.0,0.00016438,2]
[335259327,1724051451566,-500.0,0.00016438,2]
[335259328,1724051451576,-500.0,0.00016438,2]
[335259329,1724051451585,-500.0,0.00016438,2]
[335259330,1724051451594,-509.52963111,0.00016438,2]
[335259331,1724051451604,-500.0,0.00016438,2]
[335259332,1724051451614,-500.0,0.00016438,2]
[335259333,1724051451623,-500.0,0.00016438,2]
[335259334,1724051451632,-500.0,0.00016438,2]
[335259335,1724051451644,-500.0,0.00016438,2]
[335259336,1724051451653,-500.0,0.00016438,2]
[335259337,1724051451662,-500.0,0.00016438,2]
[335259338,1724051451672,-500.0,0.00016438,2]
[335259339,1724051451683,-500.0,0.00016438,2]
[335259340,1724051451692,-500.0,0.00016438,2]
[335259341,1724051451701,-500.0,0.00016438,2]
[335259342,1724051451710,-500.0,0.00016438,2]
[335259343,1724051451719,-500.0,0.00016438,2]
[335259344,1724051451729,-500.0,0.00016438,2]
[335259345,1724051451738,-500.0,0.00016438,2]
[335259346,1724051451747,-560.49517306,0.00016438,2]
[335259347,1724051451757,-511.26886594,0.00016438,2]
[335259348,1724051451766,-500.0,0.00016438,2]
[335259349,1724051451776,-500.0,0.00016438,2]
[335259350,1724051451785,-516.95149098,0.00016438,2]
[335259351,1724051451794,-500.0,0.00016438,2]
[335259352,1724051451803,-500.0,0.00016438,2]
[335259353,1724051451812,-500.0,0.00016438,2]
[335259354,1724051451821,-500.0,0.00016438,2]
[335259355,1724051451831,-500.0,0.00016438,2]
[335259356,1724051451840,-500.0,0.00016438,2]
[335259357,1724051451849,-508.80518489,0.00016438,2]
[335259358,1724051451859,-500.0,0.00016438,2]
[335259359,1724051451868,-382.23695045,0.00016438,2]
[335259360,1724051451877,-500.0,0.00016438,2]
[335259361,1724051451889,-515.62797268,0.00016438,2]
[335259362,1724051451898,-500.0,0.00016438,2]
[335259363,1724051451908,-500.0,0.00016438,2]
[335259364,1724051451917,-500.0,0.00016438,2]
[335259365,1724051451927,-500.0,0.00016438,2]
[335259366,1724051451936,-500.0,0.00016438,2]
[335259367,1724051451946,-500.0,0.00016438,2]
[335259368,1724051451956,-522.33289813,0.00016438,2]
[335259369,1724051451965,-382.55627211,0.00016438,2]
[335259370,1724051451974,-500.0,0.00016438,2]
[335259371,1724051451983,-508.89358084,0.00016438,2]
[335259372,1724051451993,-513.11620332,0.00016438,2]
[335259373,1724051452003,-794.94,0.00016438,2]
[335259374,1724051452012,-500.0,0.00016438,2]
[335259375,1724051452021,-500.0,0.00016438,2]
[335259376,1724051452031,-500.0,0.00016438,2]
[335259377,1724051452040,-897.26,0.00016438,2]
[335259378,1724051452049,-500.0,0.00016438,2]
[335259379,1724051452059,-500.0,0.00016438,2]
[335259380,1724051452068,-500.0,0.00016438,2]
[335259381,1724051452077,-500.0,0.00016438,2]
[335259382,1724051452088,-360.80031162,0.00016438,2]
[335259383,1724051452097,-500.0,0.00016438,2]
[335259384,1724051452106,-500.0,0.00016438,2]
[335259385,1724051452115,-500.0,0.00016438,2]
[335259386,1724051452125,-500.0,0.00016438,2]
[335259387,1724051452135,-500.0,0.00016438,2]
[335259388,1724051452146,-500.0,0.00016438,2]
[335259389,1724051452155,-500.0,0.00016438,2]
[335259390,1724051452164,-513.48264428,0.00016438,2]
[335259391,1724051452174,-432.25654058,0.00016438,2]
[335259392,1724051452183,-500.0,0.00016438,2]
[335259393,1724051452193,-500.0,0.00016438,2]
[335259394,1724051452203,-502.89677402,0.00016438,2]
[335259395,1724051452214,-500.0,0.00016438,2]
[335259396,1724051452223,-500.0,0.00016438,2]
[335259397,1724051452232,-500.0,0.00016438,2]
[335259398,1724051452241,-501.95547326,0.00016438,2]
[335259399,1724051452251,-168.38467933,0.00016438,2]
[335259400,1724051452260,-501.17319219,0.00016438,2]
[335259401,1724051452270,-500.0,0.00016438,2]
[335259402,1724051452279,-500.0,0.00016438,2]
[335259403,1724051452290,-500.0,0.00016438,2]
[335259404,1724051452299,-500.0,0.00016438,2]
[335259405,1724051452309,-467.85017419,0.00016438,2]
[335259406,1724051452318,-500.0,0.00016438,2]
[335259407,1724051452332,-500.0,0.00016438,2]
[335259408,1724051452341,-500.0,0.00016438,2]
[335259409,1724051452351,-706.1,0.00016438,2]
[335259410,1724051452361,-502.43516815,0.00016438,2]
[335259411,1724051452371,-641.05,0.00016438,2]
[335259412,1724051452380,-1070.46,0.00016438,2]
[335259413,1724051452390,-500.0,0.00016438,2]
[335259414,1724051452400,-500.0,0.00016438,2]
[335259415,1724051452409,-504.29082199,0.00016438,2]
[335259416,1724051452418,-500.71824404,0.00016438,2]
[335259417,1724051452427,-501.8791368,0.00016438,2]
[335259418,1724051452438,-1032.7,0.00016438,2]
[335259419,1724051452448,-500.0,0.00016438,2]
[335259420,1724051452457,-505.27242465,0.00016438,2]
[335259421,1724051452466,-509.76529251,0.00016438,2]
[335259422,1724051452475,-500.0,0.00016438,2]
[335259423,1724051452485,-548.5,0.00016438,2]
[335259424,1724051452494,-500.0,0.00016438,2]
[335259425,1724051452504,-500.0,0.00016438,2]
[335259426,1724051452513,-500.0,0.00016438,2]
[335259427,1724051452522,-500.58040504,0.00016438,2]
[335259428,1724051452532,-505.72826923,0.00016438,2]
[335259429,1724051452543,-500.0,0.00016438,2]
[335259430,1724051452554,-500.0,0.00016438,2]
[335259431,1724051452563,-500.0,0.00016438,2]
[335259432,1724051452573,-500.0,0.00016438,2]
[335259433,1724051452582,-500.0,0.00016438,2]
[335259434,1724051452592,-500.0,0.00016438,2]
[335259435,1724051452601,-500.0,0.00016438,2]
[335259436,1724051452610,-500.0,0.00016438,2]
[335259437,1724051452620,-500.0,0.00016438,2]
[335259438,1724051452629,-500.0,0.00016438,2]
[335259439,1724051452638,-500.0,0.00016438,2]
[335259440,1724051452647,-500.0,0.00016438,2]
[335259441,1724051452656,-501.1892774,0.00016438,2]
[335259442,1724051452666,-500.0,0.00016438,2]
[335259443,1724051452675,-500.0,0.00016438,2]
[335259444,1724051452685,-508.14598472,0.00016438,2]
[335259445,1724051452694,-500.0,0.00016438,2]
[335259446,1724051452704,-500.97847647,0.00016438,2]
[335259447,1724051452713,-500.0,0.00016438,2]
[335259448,1724051452723,-500.0,0.00016438,2]
[335259449,1724051452732,-500.0,0.00016438,2]
[335259450,1724051452741,-500.0,0.00016438,2]
[335259451,1724051452751,-502.03201779,0.00016438,2]
[335259452,1724051452761,-500.0,0.00016438,2]
[335259453,1724051452770,-503.99923324,0.00016438,2]
[335259454,1724051452779,-612.54188502,0.00016438,2]
[335259455,1724051452789,-500.0,0.00016438,2]
[335259456,1724051452798,-500.0,0.00016438,2]
[335259457,1724051452901,-500.0,0.00016438,2]
[335259458,1724051452913,-501.00150723,0.00016438,2]
[335259459,1724051452923,-502.54369918,0.00016438,2]
[335259460,1724051452932,-573.65,0.00016438,2]
[335259461,1724051452941,-502.05546906,0.00016438,2]
[335259462,1724051452951,-500.96232263,0.00016438,2]
[335259463,1724051452960,-500.0,0.00016438,2]
[335259464,1724051452970,-504.15528746,0.00016438,2]
[335259465,1724051452979,-500.0,0.00016438,2]
[335259466,1724051452989,-666.52,0.00016438,2]
[335259467,1724051452999,-505.74708679,0.00016438,2]
[335259468,1724051453008,-500.0,0.00016438,2]
[335259469,1724051453018,-150.35931875,0.00016438,2]
[335259470,1724051453027,-310.22723642,0.00016438,2]
[335259471,1724051453037,-506.03916062,0.00016438,2]
[335259472,1724051453046,-500.0,0.00016438,2]
[335259473,1724051453056,-500.0,0.00016438,2]
[335259474,1724051453065,-525.3,0.00016438,2]
[335259475,1724051453074,-501.28939589,0.00016438,2]
[335259476,1724051453084,-500.51680377,0.00016438,2]
[335259477,1724051453093,-678.81,0.00016438,2]
[335259478,1724051453103,-502.16363311,0.00016438,2]
[335259479,1724051453112,-500.0,0.00016438,2]
[335259480,1724051453122,-547.88,0.00016438,2]
[335259481,1724051453132,-419.05925699,0.00016438,2]
[335259482,1724051453141,-612.42982499,0.00016438,2]
[335259483,1724051453152,-500.0,0.00016438,2]
[335259484,1724051453161,-500.0,0.00016438,2]
[335259485,1724051453170,-504.55231395,0.00016438,2]
[335259486,1724051453180,-500.0,0.00016438,2]
[335259487,1724051453191,-503.82088949,0.00016438,2]
[335259488,1724051453202,-500.0,0.00016438,2]
[335259489,1724051453211,-500.0,0.00016438,2]
[335259490,1724051453220,-504.04858405,0.00016438,2]
[335259491,1724051453229,-502.41857027,0.00016438,2]
[335259492,1724051453238,-500.0,0.00016438,2]
[335259493,1724051453248,-502.18427462,0.00016438,2]
[335259494,1724051453257,-500.0,0.00016438,2]
[335259495,1724051453266,-500.0,0.00016438,2]
[335259496,1724051453275,-500.0,0.00016438,2]
[335259497,1724051453286,-622.2,0.00016438,2]
[335259498,1724051453296,-1103.45,0.00016438,2]
[335259499,1724051453306,-500.0,0.00016438,2]
[335259500,1724051453317,-500.0,0.00016438,2]
[335259501,1724051453331,-504.53357476,0.00016438,2]
[335259502,1724051453342,-503.84791118,0.00016438,2]
[335259503,1724051453351,-500.0,0.00016438,2]
[335259504,1724051453360,-502.58974299,0.00016438,2]
[335259505,1724051453372,-573.91,0.00016438,2]
[335259506,1724051453383,-501.12357685,0.00016438,2]
[335259507,1724051453394,-504.25352479,0.00016438,2]
[335259508,1724051453405,-200.0,0.00016438,2]
[335259509,1724051453414,-501.99003863,0.00016438,2]
[335259510,1724051453423,-689.0,0.00016438,2]
[335259511,1724051453432,-645.59599321,0.00016438,2]
[335259512,1724051453442,-538.161646,0.00016438,2]
[335259513,1724051453452,-500.0,0.00016438,2]
[335259514,1724051453462,-538.161646,0.00016438,2]
[335259515,1724051453471,-538.161646,0.00016438,2]
[335259516,1724051453481,-711.44,0.00016438,2]
[335259517,1724051453491,-500.0,0.00016438,2]
[335259518,1724051453501,-500.0,0.00016438,2]
[335259519,1724051453510,-500.0,0.00016438,2]
[335259520,1724051453520,-501.98635715,0.00016438,2]
[335259521,1724051453529,-538.161646,0.00016438,2]
[335259522,1724051453538,-538.161646,0.00016438,2]
[335259523,1724051453547,-538.161648,0.00016438,2]
[335259524,1724051453556,-516.74467283,0.00016438,2]
[335259525,1724051453567,-501.22553691,0.00016438,2]
[335259526,1724051453577,-499.92272583,0.00016438,2]
[335259527,1724051453586,-501.25112193,0.00016438,2]
[335259528,1724051453596,-500.35062215,0.00016438,2]
[335259529,1724051453606,-500.0,0.00016438,2]
[335259530,1724051453616,-500.0,0.00016438,2]
[335259531,1724051453625,-504.01894823,0.00016438,2]
[335259532,1724051453635,-500.0,0.00016438,2]
[335259533,1724051453646,-253.4822353,0.00016438,2]
[335259534,1724051453656,-500.0,0.00016438,2]
[335259535,1724051453666,-501.28442786,0.00016438,2]
[335259536,1724051453676,-500.0,0.00016438,2]
[335259537,1724051453686,-503.89849296,0.00016438,2]
[335259538,1724051453696,-669.27,0.00016438,2]
[335259539,1724051453705,-507.7354482,0.00016438,2]
[335259540,1724051453715,-503.50994819,0.00016438,2]
[335259541,1724051453724,-500.0,0.00016438,2]
[335259542,1724051453734,-500.0,0.00016438,2]
[335259543,1724051453744,-500.0,0.00016438,2]
[335259544,1724051453754,-500.0,0.00016438,2]
[335259545,1724051453764,-500.0,0.00016438,2]
[335259546,1724051453775,-507.28368872,0.00016438,2]
[335259547,1724051453786,-654.48,0.00016438,2]
[335259548,1724051453796,-507.01915957,0.00016438,2]
[335259549,1724051453806,-1249.82,0.00016438,2]
[335259550,1724051453816,-500.73780502,0.00016438,2]
[335259551,1724051453827,-502.42727859,0.00016438,2]
[335259552,1724051453836,-520.92,0.00016438,2]
[335259553,1724051453847,-498.76480398,0.00016438,2]
[335259554,1724051453857,-512.31974774,0.00016438,2]
[335259555,1724051453867,-503.12725931,0.00016438,2]
[335259556,1724051453877,-726.59,0.00016438,2]
[335259557,1724051453887,-502.72093658,0.00016438,2]
[335259558,1724051453897,-502.17615143,0.00016438,2]
[335259559,1724051453907,-703.34,0.00016438,2]
[335259560,1724051453917,-519.95084082,0.00016438,2]
[335259561,1724051453927,-500.0,0.00016438,2]
[335259562,1724051453938,-151.0,0.00016438,2]
[335259563,1724051453950,-505.72073218,0.00016438,2]
[335259564,1724051453961,-151.0,0.00016438,2]
[335259565,1724051453970,-151.0,0.00016438,2]
[335259566,1724051453980,-500.0,0.00016438,2]
[335259567,1724051453989,-1338.69,0.00016438,2]
[335259568,1724051453999,-501.05470978,0.00016438,2]
[335259569,1724051454009,-501.28514812,0.00016438,2]
[335259570,1724051454020,-500.0,0.00016438,2]
[335259571,1724051454031,-500.0,0.00016438,2]
[335259572,1724051454042,-503.72909446,0.00016438,2]
[335259573,1724051454052,-500.0,0.00016438,2]
[335259574,1724051454064,-500.33286493,0.00016438,2]
[335259575,1724051454074,-940.52,0.00016438,2]
[335259576,1724051454084,-500.0,0.00016438,2]
[335259577,1724051454094,-500.0,0.00016438,2]
[335259578,1724051454105,-200.593651,0.00016438,2]
[335259579,1724051454115,-200.593651,0.00016438,2]
[335259580,1724051454126,-200.593651,0.00016438,2]
[335259581,1724051454136,-612.13,0.00016438,2]
[335259582,1724051454147,-500.0,0.00016438,2]
[335259583,1724051454157,-514.74405572,0.00016438,2]
[335259584,1724051454168,-418.37886151,0.00016438,2]
[335259585,1724051454177,-500.0,0.00016438,2]
[335259586,1724051454187,-595.04,0.00016438,2]
[335259587,1724051454196,-200.593651,0.00016438,2]
[335259588,1724051454206,-200.593651,0.00016438,2]
[335259589,1724051454216,-200.59366,0.00016438,2]
[335259590,1724051454226,-500.0,0.00016438,2]
[335259591,1724051454237,-500.0,0.00016438,2]
[335259592,1724051454247,-502.20139693,0.00016438,2]
[335259593,1724051454257,-500.0,0.00016438,2]
[335259594,1724051454267,-500.0,0.00016438,2]
[335259595,1724051454277,-505.25227212,0.00016438,2]
[335259596,1724051454287,-500.0,0.00016438,2]
[335259597,1724051454297,-500.0,0.00016438,2]
[335259598,1724051454306,-500.0,0.00016438,2]
[335259599,1724051454316,-506.52692184,0.00016438,2]
[335259600,1724051454328,-500.0,0.00016438,2]
[335259601,1724051454338,-502.83127741,0.00016438,2]
[335259602,1724051454350,-500.0,0.00016438,2]
[335259603,1724051454362,-500.0,0.00016438,2]
[335259604,1724051454373,-565.92,0.00016438,2]
[335259605,1724051454383,-529.93955262,0.00016438,2]
[335259606,1724051454399,-197.267376,0.00016438,2]
[335259607,1724051454409,-197.267376,0.00016438,2]
[335259608,1724051454418,-197.267376,0.00016438,2]
[335259609,1724051454428,-500.0,0.00016438,2]
[335259610,1724051454438,-197.267376,0.00016438,2]
[335259611,1724051454449,-501.2228433,0.00016438,2]
[335259612,1724051454459,-197.267376,0.00016438,2]
[335259613,1724051454469,-197.267373,0.00016438,2]
[335259614,1724051454479,-658.0,0.00016438,2]
[335259615,1724051454489,-500.0,0.00016438,2]
[335259616,1724051454499,-500.0,0.00016438,2]
[335259617,1724051454508,-500.0,0.00016438,2]
[335259618,1724051454518,-500.0,0.00016438,2]
[335259619,1724051454528,-600.07923547,0.00016438,2]
[335259620,1724051454538,-500.0,0.00016438,2]
[335259621,1724051454548,-500.0,0.00016438,2]
[335259622,1724051454557,-500.0,0.00016438,2]
[335259623,1724051454567,-503.27652746,0.00016438,2]
[335259624,1724051454577,-500.0,0.00016438,2]
[335259625,1724051454587,-503.67068371,0.00016438,2]
[335259626,1724051454598,-536.36,0.00016438,2]
[335259627,1724051454607,-500.0,0.00016438,2]
[335259628,1724051454618,-500.0,0.00016438,2]
[335259629,1724051454628,-500.0,0.00016438,2]
[335259630,1724051454638,-544.86037744,0.00016438,2]
[335259631,1724051454647,-500.0,0.00016438,2]
[335259632,1724051454657,-500.0,0.00016438,2]
[335259633,1724051454667,-500.0,0.00016438,2]
[335259634,1724051454677,-299.78659524,0.00016438,2]
[335259635,1724051454775,-541.55309509,0.00016438,2]
[335259636,1724051454784,-500.51155699,0.00016438,2]
[335259637,1724051454794,-625.78131255,0.00016438,2]
[335259638,1724051454803,-500.0,0.00016438,2]
[335259639,1724051454812,-504.30485944,0.00016438,2]
[335259640,1724051454821,-906.33,0.00016438,2]
[335259641,1724051454830,-642.54,0.00016438,2]
[335259642,1724051454839,-500.0,0.00016438,2]
[335259643,1724051454848,-502.84089237,0.00016438,2]
[335259644,1724051454858,-555.31,0.00016438,2]
[335259645,1724051454867,-500.0,0.00016438,2]
[335259646,1724051454876,-500.0,0.00016438,2]
[335259647,1724051454885,-530.14840223,0.00016438,2]
[335259648,1724051454900,-500.0,0.00016438,2]
[335259649,1724051454913,-500.0,0.00016438,2]
[335259650,1724051454923,-500.0,0.00016438,2]
[335259651,1724051454933,-500.0,0.00016438,2]
[335259652,1724051454942,-500.0,0.00016438,2]
[335259653,1724051454951,-503.5924713,0.00016438,2]
[335259654,1724051454960,-500.0,0.00016438,2]
[335259655,1724051454969,-500.0,0.00016438,2]
[335259656,1724051454978,-500.0,0.00016438,2]
[335259657,1724051454987,-503.86728125,0.00016438,2]
[335259658,1724051454997,-506.59129706,0.00016438,2]
[335259659,1724051455006,-528.3,0.00016438,2]
[335259660,1724051455015,-514.46909375,0.00016438,2]
[335259661,1724051455025,-500.0,0.00016438,2]
[335259662,1724051455034,-558.68,0.00016438,2]
[335259663,1724051455043,-674.41,0.00016438,2]
[335259664,1724051455053,-500.0,0.00016438,2]
[335259665,1724051455064,-500.0,0.00016438,2]